bitfinex/quotes_SOLUSD_20240624
["timestamp","ask_amount","ask_price","bid_price","bid_amount"]
[1719250743489,30.96,127.5,127.33,6.6365]
[1719250743656,7.845,127.47,127.33,6.6365]
[1719250743863,30.96,127.5,127.34,20.17]
[1719250744071,30.96,127.5,127.36,19.6288]
[1719250744468,7.8432,127.5,127.37,45.17]
[1719250744975,23.53,127.52,127.37,45.17]
[1719250744976,7.8425,127.51,127.37,45.17]
[1719250745655,7.8451,127.47,127.37,45.0]
[1719250746185,7.8462,127.45,127.33,6.6365]
[1719250746362,0.17,127.44,127.33,6.6365]
[1719250746563,23.53,127.44,127.3,275.3755]
[1719250746872,7.8482,127.42,127.3,275.3755]
[1719250747064,0.34,127.41,127.3,275.3755]
[1719250747261,0.34,127.41,127.3,16.2755]
[1719250747781,0.34,127.42,127.32,7.8536]
[1719250747985,37.0864,127.5,127.35,7.8523]
[1719250748192,37.0864,127.5,127.37,6.1554]
[1719250748363,6.1264,127.5,127.37,6.1554]
[1719250749382,13.9699,127.5,127.37,6.1554]
[1719250749594,6.1264,127.5,127.37,6.1554]
[1719250749769,30.96,127.52,127.38,0.34]
[1719250750086,7.8408,127.54,127.39,15.4487]
[1719250750406,6.1554,127.54,127.4,28.0187]
[1719250750686,38.7996,127.56,127.41,8.0185]
[1719250750866,30.96,127.56,127.42,20.17]
[1719250751070,8.1916283,127.57,127.45,6.4995]
[1719250751388,7.8383,127.58,127.45,6.4995]
[1719250751761,7.8383,127.58,127.46,45.0]
[1719250752267,13.9063,127.59,127.46,45.0]
[1719250752484,7.8388,127.57,127.46,45.0]
[1719250752969,16.02640477,127.61,127.47,0.17]
[1719250753171,8.19000477,127.61,127.48,16.1888]
[1719250753392,7.8374,127.6,127.49,45.0]
[1719250753567,31.72000477,127.61,127.49,45.0]
[1719250753989,7.8377,127.59,127.49,45.0]
[1719250754390,0.17,127.58,127.49,45.0]
[1719250754696,0.34,127.58,127.49,45.0]
[1719250754882,8.19000477,127.61,127.49,45.0]
[1719250755492,7.8378,127.59,127.49,45.0]
[1719250755681,27.78130477,127.61,127.48,16.1888]
[1719250755994,7.8388,127.57,127.45,6.4995]
[1719250756169,0.17,127.56,127.45,6.4995]
[1719250756368,0.34,127.56,127.45,6.4995]
[1719250756577,0.34,127.56,127.45,14.3456]
[1719250756891,0.34,127.56,127.46,20.17]
[1719250757198,0.34,127.56,127.46,20.34]
[1719250757398,0.34,127.56,127.46,28.1853]
[1719250757689,8.19000477,127.61,127.46,20.34]
[1719250757890,16.02640477,127.61,127.47,19.6119]
[1719250758093,8.19000477,127.61,127.48,20.34]
[1719250758693,16.02640477,127.61,127.48,20.34]
[1719250758875,0.17,127.6,127.48,20.34]
[1719250759075,0.34,127.6,127.48,20.34]
[1719250759274,8.19000477,127.61,127.48,20.34]
[1719250759689,8.19000477,127.61,127.48,20.0]
[1719250759892,7.8371,127.6,127.46,20.0]
[1719250760067,8.19000477,127.61,127.46,20.0]
[1719250760267,8.19000477,127.61,127.49,7.8436]
[1719250760470,8.190005,127.64,127.47,19.6121]
[1719250760674,7.8346,127.64,127.48,27.8441]
[1719250760977,7.8353,127.63,127.48,27.8439]
[1719250761173,31.71726995,127.65,127.49,0.34]
[1719250761394,7.8353,127.63,127.49,0.34]
[1719250761599,7.836,127.62,127.49,0.34]
[1719250761808,7.8359,127.62,127.49,0.34]
[1719250762118,27.77246995,127.65,127.46,27.8451]
[1719250762290,0.34,127.64,127.47,0.17]
[1719250762475,7.8358,127.62,127.47,8.0144]
[1719250762808,9.09052696,127.64,127.49,7.8436]
[1719250762977,10.30653328,127.65,127.53,6.4965]
[1719250762978,18.14043328,127.65,127.53,6.4965]
[1719250763174,8.18726995,127.65,127.53,6.4965]
[1719250763692,8.18726995,127.65,127.54,0.17]
[1719250763909,8.18726995,127.65,127.53,6.4965]
[1719250764074,16.02116995,127.65,127.53,6.4965]
[1719250764278,23.53,127.64,127.53,6.4965]
[1719250764508,8.18726995,127.65,127.53,6.4965]
[1719250764688,7.8374,127.6,127.53,6.4965]
[1719250764997,0.34,127.59,127.48,6.6501]
[1719250766097,7.8383,127.58,127.48,6.6501]
[1719250766276,8.1788,127.57,127.48,6.6501]
[1719250766477,7.8398,127.56,127.48,6.6501]
[1719250766677,0.34,127.55,127.48,6.6501]
[1719250767300,0.17,127.55,127.48,6.6501]
[1719250767678,7.8365,127.61,127.48,6.6501]
[1719250767876,7.837,127.6,127.48,6.6501]
[1719250768099,7.8382,127.59,127.48,6.6501]
[1719250768590,7.8373,127.6,127.48,6.6501]
[1719250769100,62.3752,127.63,127.48,6.6501]
[1719250769273,31.01,127.63,127.49,0.17]
[1719250769478,31.01,127.63,127.48,26.2604]
[1719250769479,7.8362,127.62,127.48,6.6501]
[1719250769809,7.8368,127.61,127.48,6.6501]
[1719250770101,0.17,127.61,127.48,6.6501]
[1719250770298,19.7618,127.61,127.48,6.6501]
[1719250770477,0.17,127.6,127.48,6.6501]
[1719250770678,43.124,127.59,127.48,6.6501]
[1719250770879,8.1783,127.58,127.48,6.6501]
[1719250771080,0.34,127.58,127.48,6.6501]
[1719250771384,8.1784,127.58,127.48,6.6501]
[1719250771589,0.34,127.58,127.48,6.6501]
[1719250771799,0.17,127.59,127.48,6.6501]
[1719250772118,8.0071,127.6,127.48,6.6501]
[1719250772307,0.17,127.6,127.48,6.6501]
[1719250772905,8.0071,127.6,127.48,6.6501]
[1719250773101,0.17,127.59,127.48,6.6501]
[1719250773302,0.34,127.6,127.48,6.6501]
[1719250773808,11.20979029,127.65,127.49,0.17]
[1719250774005,11.20979029,127.65,127.49,39.9492]
[1719250774212,27.23082974,127.65,127.5,7.843]
[1719250774511,7.8362,127.62,127.48,6.6501]
[1719250774699,7.8362,127.62,127.49,20.17]
[1719250775106,0.17,127.61,127.49,20.17]
[1719250775312,7.8371,127.6,127.49,20.0]
[1719250775507,7.8383,127.58,127.48,6.6501]
[1719250775809,0.34,127.57,127.48,6.6501]
[1719250777099,23.53,127.64,127.48,6.6501]
[1719250777512,7.8369,127.61,127.49,0.17]
[1719250777705,7.8369,127.61,127.48,6.6501]
[1719250778318,8.0074,127.6,127.48,6.6501]
[1719250778504,0.17,127.59,127.48,6.6501]
[1719250778702,0.34,127.6,127.48,6.6501]
[1719250778904,0.17,127.59,127.48,6.6501]
[1719250779216,0.34,127.61,127.48,6.6501]
[1719250779414,7.8374,127.6,127.48,6.6501]
[1719250779592,0.34,127.59,127.48,6.6501]
[1719250779927,0.17,127.58,127.49,20.0]
[1719250780127,25.35519214,127.65,127.5,0.17]
[1719250780423,7.8362,127.62,127.5,0.34]
[1719250780614,7.8353,127.63,127.5,0.34]
[1719250781116,19.5863,127.64,127.49,20.0]
[1719250781294,43.1163,127.64,127.49,20.0]
[1719250781494,7.8363,127.61,127.49,20.0]
[1719250781693,0.34,127.6,127.49,20.0]
[1719250781923,0.17,127.59,127.48,6.6501]
[1719250784420,0.34,127.57,127.48,6.6501]
[1719250784623,0.17,127.57,127.48,6.6501]
[1719250784816,0.34,127.58,127.48,6.6501]
[1719250785009,8.1782,127.58,127.48,6.6501]
[1719250785212,0.34,127.58,127.48,6.6501]
[1719250785701,0.17,127.57,127.48,6.6501]
[1719250786025,0.34,127.59,127.48,6.6501]
[1719250786198,7.8402,127.55,127.47,15.3883]
[1719250786529,0.34,127.54,127.47,15.3883]
[1719250788005,0.17,127.54,127.47,15.3883]
[1719250788213,2.12595528,127.59,127.47,15.3883]
[1719250788404,14.5013,127.63,127.48,7.8439]
[1719250788603,26.33599029,127.64,127.5,6.0324]
[1719250788837,19.39963729,127.64,127.51,0.17]
[1719250789016,19.04469029,127.64,127.51,20.0]
[1719250789627,7.8352,127.63,127.51,20.0]
[1719250789802,23.53,127.63,127.5,6.0324]
[1719250789998,54.53,127.63,127.5,6.0324]
[1719250790308,2.12595528,127.62,127.5,6.0324]
[1719250790711,0.17,127.61,127.5,6.0324]
[1719250790922,2.12595528,127.62,127.5,6.0324]
[1719250791111,6.19418389,127.64,127.5,33.4826]
[1719250791434,7.8349,127.64,127.51,20.17]
[1719250791604,7.834,127.65,127.51,20.17]
[1719250792201,0.17,127.64,127.51,20.17]
[1719250792421,0.17,127.64,127.5,6.2024]
[1719250792422,0.34,127.64,127.5,6.2024]
[1719250792622,24.16632666,127.64,127.5,6.0324]
[1719250792813,16.92622696,127.63,127.5,6.0324]
[1719250793023,0.34,127.62,127.5,6.0324]
[1719250793400,8.1759,127.62,127.5,6.0324]
[1719250793605,7.8373,127.6,127.5,6.0324]
[1719250793917,7.8387,127.58,127.5,6.0324]
[1719250794120,0.34,127.57,127.5,6.0324]
[1719250794428,0.17,127.56,127.5,6.0324]
[1719250796322,8.1788,127.57,127.5,6.0324]
[1719250797338,0.34,127.57,127.5,6.0324]
[1719250797627,0.17,127.57,127.5,6.0324]
[1719250800037,8.009,127.57,127.5,6.0324]
[1719250800206,0.17,127.56,127.5,6.0324]
[1719250800411,7.8407,127.54,127.47,15.3883]
[1719250800613,0.34,127.53,127.47,15.3883]
[1719250801106,0.17,127.53,127.47,15.3883]
[1719250801634,0.34,127.54,127.47,15.3883]
[1719250802141,6.16495076,127.61,127.47,15.3883]
[1719250802427,7.8408,127.54,127.47,15.3883]
[1719250802741,7.8393,127.57,127.47,15.3883]
[1719250802940,21.71885528,127.6,127.47,15.3883]
[1719250803229,7.8383,127.58,127.47,15.3883]
[1719250803432,0.17,127.57,127.47,15.3883]
[1719250803613,0.17,127.58,127.47,15.3883]
[1719250803936,9.96355528,127.59,127.47,15.3883]
[1719250804136,7.8382,127.58,127.47,15.3883]
[1719250804353,7.8388,127.57,127.47,15.3883]
[1719250804854,45.28055528,127.59,127.47,15.3883]
[1719250805027,7.8418,127.53,127.47,15.3883]
[1719250805227,0.17,127.52,127.47,15.3883]
[1719250805433,0.34,127.52,127.47,15.3883]
[1719250805846,2.12595528,127.58,127.47,15.3883]
[1719250806149,7.8395,127.56,127.47,15.3883]
[1719250806342,0.34,127.55,127.47,15.3883]
[1719250806527,7.8413,127.53,127.47,15.3883]
[1719250806722,0.34,127.52,127.47,15.3883]
[1719250806940,0.17,127.51,127.46,6.6022]
[1719250807127,8.0129,127.51,127.46,6.6022]
[1719250807323,8.0134,127.5,127.41,6.1556]
[1719250807532,0.17,127.49,127.41,6.1556]
[1719250807733,8.0132,127.5,127.41,6.1556]
[1719250807968,0.17,127.49,127.41,6.1556]
[1719250808536,0.34,127.5,127.41,6.1556]
[1719250809246,7.8461,127.46,127.37,6.0017]
[1719250809443,0.34,127.45,127.37,6.0017]
[1719250809650,0.17,127.44,127.37,6.0017]
[1719250809960,0.17,127.42,127.37,6.0017]
[1719250810253,0.17,127.44,127.37,6.0017]
[1719250810459,0.34,127.44,127.37,6.0017]
[1719250810948,7.8511,127.37,127.3,6.4694]
[1719250811163,0.34,127.36,127.3,6.4694]
[1719250811635,8.1921,127.36,127.3,6.4694]
[1719250811842,0.34,127.36,127.3,6.4694]
[1719250812079,0.17,127.36,127.3,6.4694]
[1719250812250,2.12595528,127.42,127.3,6.4694]
[1719250812556,0.17,127.41,127.3,6.4694]
[1719250813057,2.12595528,127.46,127.3,30.0294]
[1719250813263,2.12595528,127.46,127.34,6.2957]
[1719250813436,9.97175528,127.46,127.34,6.2957]
[1719250813635,2.12595528,127.46,127.35,0.17]
[1719250813834,2.12595528,127.46,127.35,20.17]
[1719250814037,31.0,127.56,127.37,15.8209]
[1719250814262,7.8437,127.5,127.37,15.8209]
[1719250814438,8.1950472,127.54,127.37,15.8209]
[1719250814641,8.1950472,127.54,127.38,0.17]
[1719250814837,3.24378823,127.55,127.4,7.8492]
[1719250815060,7.84,127.55,127.41,0.17]
[1719250815251,7.84,127.55,127.41,20.17]
[1719250815485,7.841,127.54,127.41,20.17]
[1719250815636,18.2850098,127.58,127.44,6.3477]
[1719250815841,7.8352,127.63,127.49,6.3477]
[1719250816056,7.8345,127.64,127.5,20.0]
[1719250816236,7.8382,127.58,127.49,6.3477]
[1719250816434,19.5887,127.63,127.49,6.3477]
[1719250816662,54.62,127.64,127.49,6.3477]
[1719250816663,23.56,127.64,127.49,6.3477]
[1719250817045,6.21702757,127.64,127.49,6.3477]
[1719250817254,7.8357,127.62,127.49,6.3477]
[1719250817464,8.18760047,127.65,127.49,6.3477]
[1719250817634,7.8376,127.59,127.49,6.3477]
[1719250817840,19.5894,127.62,127.49,6.3477]
[1719250818145,53.49489975,127.65,127.49,6.3477]
[1719250818343,23.56,127.63,127.49,6.3477]
[1719250818683,7.8365,127.61,127.49,6.3477]
[1719250818965,7.8345,127.64,127.49,6.3477]
[1719250819139,22.15759975,127.65,127.5,20.17]
[1719250819341,14.32329975,127.65,127.5,28.013]
[1719250819660,14.32329975,127.65,127.51,30.7333]
[1719250819864,14.32329975,127.65,127.52,20.17]
[1719250820069,14.32329975,127.65,127.52,20.0]
[1719250820241,14.32329975,127.65,127.51,22.8913]
[1719250820440,23.56,127.64,127.51,22.8913]
[1719250820742,14.32329975,127.65,127.51,22.8913]
[1719250820943,39.1763,127.63,127.51,22.8913]
[1719250821140,19.5933,127.6,127.51,6.6366]
[1719250821365,7.8413,127.53,127.45,15.6703]
[1719250821542,7.8407,127.54,127.45,15.6703]
[1719250821739,7.8413,127.53,127.45,15.6703]
[1719250821940,0.17,127.52,127.45,15.6703]
[1719250822177,0.17,127.53,127.46,6.5031]
[1719250822359,0.17,127.52,127.46,6.5031]
[1719250822861,8.0122,127.52,127.46,6.5031]
[1719250823069,0.17,127.52,127.46,6.5031]
[1719250823646,0.17,127.53,127.46,6.5031]
[1719250824050,0.17,127.53,127.37,669.1277]
[1719250824051,7.8448,127.48,127.38,22.1734]
[1719250824380,0.17,127.47,127.38,22.1734]
[1719250824870,0.34,127.47,127.38,22.1734]
[1719250825382,0.17,127.47,127.38,22.1734]
[1719250825543,0.34,127.48,127.38,22.1734]
[1719250825882,0.34,127.47,127.38,22.1734]
[1719250826083,0.34,127.49,127.38,22.1734]
[1719250826544,0.17,127.49,127.38,22.1734]
[1719250826870,8.19490804,127.55,127.39,0.34]
[1719250827049,7.8396,127.56,127.4,7.849]
[1719250827244,7.8396,127.56,127.41,0.17]
[1719250827448,27.78859717,127.58,127.41,20.17]
[1719250827752,7.8401,127.55,127.4,8.0191]
[1719250827964,8.19229717,127.58,127.41,20.17]
[1719250828149,8.19229717,127.58,127.43,6.5021]
[1719250828469,19.5975,127.57,127.43,6.5021]
[1719250828671,8.19229717,127.58,127.44,0.17]
[1719250828979,7.8393,127.57,127.44,20.17]
[1719250829178,8.19123417,127.58,127.44,20.0]
[1719250829345,7.8402,127.55,127.44,20.0]
[1719250829757,7.8408,127.54,127.43,6.5021]
[1719250829971,0.17,127.53,127.43,6.5021]
[1719250830376,19.6073,127.51,127.43,6.5021]
[1719250830592,7.8444,127.48,127.43,6.5021]
[1719250830771,0.34,127.47,127.39,6.1752]
[1719250830956,0.17,127.47,127.39,6.1752]
[1719250831793,0.34,127.47,127.39,6.1752]
[1719250832584,0.34,127.48,127.39,6.1752]
[1719250832789,0.17,127.48,127.39,6.1752]
[1719250832960,0.17,127.49,127.39,6.1752]
[1719250833161,0.17,127.47,127.39,6.1752]
[1719250833358,0.34,127.47,127.39,6.1752]
[1719250833976,6.03063873,127.54,127.39,6.1752]
[1719250834178,88.3335,127.53,127.39,6.1752]
[1719250834486,7.845,127.47,127.39,6.1752]
[1719250834792,0.34,127.46,127.39,6.1752]
[1719250835098,22.3307,127.55,127.39,6.1752]
[1719250835296,22.3307,127.55,127.4,0.17]
[1719250835297,7.8412,127.54,127.4,0.17]
[1719250835484,7.8413,127.53,127.4,0.17]
[1719250835790,31.06,127.56,127.4,0.17]
[1719250835996,31.06,127.56,127.4,0.34]
[1719250836202,7.8402,127.55,127.4,0.34]
[1719250836366,7.8402,127.55,127.39,6.1752]
[1719250836367,19.6004,127.55,127.39,6.1752]
[1719250836694,19.6035,127.53,127.39,6.1752]
[1719250837189,7.843,127.51,127.39,6.1752]
[1719250837378,0.17,127.5,127.39,6.1752]
[1719250837584,8.0147,127.48,127.39,6.1752]
[1719250837770,0.17,127.47,127.39,6.1752]
[1719250837971,7.8466,127.45,127.39,6.1752]
[1719250838181,0.34,127.44,127.39,6.1752]
[1719250838381,8.1869,127.44,127.39,6.1752]
[1719250838581,7.8479,127.43,127.39,6.1752]
[1719250838774,0.34,127.42,127.38,15.6703]
[1719250839191,7.849,127.41,127.35,6.471]
[1719250839395,0.34,127.4,127.35,6.471]
[1719250839585,0.17,127.4,127.35,6.471]
[1719250840290,0.17,127.42,127.35,6.471]
[1719250840496,0.17,127.41,127.35,6.471]
[1719250841982,8.0188,127.41,127.35,6.471]
[1719250842297,0.17,127.41,127.35,6.471]
[1719250842503,0.17,127.4,127.35,6.471]
[1719250842800,0.34,127.41,127.35,6.471]
[1719250843690,16.04268148,127.49,127.35,6.471]
[1719250844008,7.8442,127.49,127.35,6.471]
[1719250844176,7.8451,127.47,127.35,6.471]
[1719250844380,7.8458,127.46,127.35,6.471]
[1719250844602,19.6084,127.5,127.35,6.471]
[1719250844800,19.6114,127.48,127.35,6.471]
[1719250845010,43.1714,127.48,127.35,6.471]
[1719250845310,45.0,127.47,127.35,6.471]
[1719250845484,7.847,127.44,127.35,6.471]
[1719250845703,0.17,127.43,127.35,6.471]
[1719250845924,0.17,127.47,127.35,6.471]
[1719250846233,8.0152,127.47,127.36,15.296]
[1719250846441,0.17,127.47,127.36,15.296]
[1719250846611,8.18223144,127.5,127.4,19.6225]
[1719250846932,6.11250998,127.56,127.43,16.4473]
[1719250847104,16.03140855,127.56,127.43,16.4473]
[1719250847426,8.19190855,127.56,127.43,16.4473]
[1719250848011,7.8428,127.51,127.43,16.4473]
[1719250848214,7.8417,127.53,127.43,16.4473]
[1719250848430,0.17,127.52,127.43,16.4473]
[1719250848602,7.8429,127.51,127.43,16.4473]
[1719250848802,7.8429,127.51,127.44,45.0]
[1719250849132,31.06,127.54,127.44,45.0]
[1719250849516,8.19190855,127.56,127.44,45.0]
[1719250849708,8.19190855,127.56,127.45,6.0978]
[1719250849908,8.19190855,127.56,127.46,45.0]
[1719250850811,7.8375,127.6,127.47,20.0]
[1719250851109,7.8375,127.6,127.48,45.0]
[1719250851522,7.8375,127.6,127.49,16.4942]
[1719250851936,8.18946967,127.63,127.5,6.3871]
[1719250852108,8.26881588,127.64,127.51,0.17]
[1719250852444,8.18667034,127.66,127.51,20.17]
[1719250852733,6.21656186,127.67,127.51,20.17]
[1719250852924,65.30781588,127.68,127.51,20.17]
[1719250853106,94.90169995,127.68,127.51,20.17]
[1719250853733,7.834,127.65,127.51,20.17]
[1719250853907,7.8334,127.66,127.51,20.17]
[1719250854109,7.8353,127.63,127.51,20.0]
[1719250854308,43.1423,127.67,127.51,20.0]
[1719250854616,7.8353,127.63,127.51,20.0]
[1719250854929,7.8345,127.64,127.51,20.0]
[1719250855105,0.17,127.63,127.51,20.0]
[1719250855312,0.34,127.64,127.51,20.0]
[1719250855636,7.8327,127.67,127.52,0.17]
[1719250855943,7.8327,127.67,127.53,22.5662]
[1719250856434,7.8376,127.6,127.53,22.5662]
[1719250856617,32.90253774,127.67,127.53,22.5662]
[1719250856618,7.8344,127.65,127.53,22.5662]
[1719250856930,7.8347,127.64,127.53,22.5662]
[1719250857232,28.62023774,127.67,127.53,22.5662]
[1719250857431,23.56,127.65,127.53,22.5662]
[1719250857637,88.3167,127.64,127.53,22.5662]
[1719250857844,7.8365,127.61,127.53,22.5662]
[1719250858024,0.34,127.6,127.53,22.5662]
[1719250858620,0.17,127.61,127.53,22.5662]
[1719250858916,0.17,127.62,127.53,22.5662]
[1719250859118,7.8358,127.62,127.53,22.5662]
[1719250859326,0.17,127.61,127.53,22.5662]
[1719250859815,0.34,127.62,127.53,22.5662]
[1719250860015,0.34,127.63,127.53,22.5662]
[1719250860219,7.8371,127.6,127.53,22.5662]
[1719250860519,0.34,127.59,127.53,22.5662]
[1719250860724,0.17,127.58,127.53,22.5662]
[1719250862029,8.1776,127.59,127.53,22.5662]
[1719250862225,0.34,127.59,127.53,22.5662]
[1719250862746,7.8389,127.57,127.53,6.255]
[1719250862913,7.8389,127.57,127.49,16.6266]
[1719250862914,8.1795,127.56,127.49,22.7064]
[1719250863113,0.17,127.57,127.49,22.7064]
[1719250863314,0.17,127.59,127.49,22.7064]
[1719250863746,0.17,127.6,127.49,22.7064]
[1719250863932,38.8945,127.64,127.49,30.55]
[1719250864130,7.8345,127.64,127.5,0.34]
[1719250864651,7.8351,127.63,127.5,0.34]
[1719250864827,25.59573038,127.65,127.49,42.7064]
[1719250865156,0.17,127.64,127.5,0.17]
[1719250865344,7.8346,127.64,127.5,20.34]
[1719250865639,14.38767409,127.66,127.53,6.0798]
[1719250866137,7.8349,127.64,127.53,6.0798]
[1719250866319,14.38767409,127.66,127.53,6.0798]
[1719250866834,7.8359,127.62,127.53,6.0798]
[1719250867139,14.38767409,127.66,127.53,6.0798]
[1719250867338,8.18386624,127.66,127.54,20.0]
[1719250868049,20.0,127.72,127.59,6.0622]
[1719250868259,6.5965,127.83,127.63,6.0622]
[1719250868578,6.5965,127.83,127.66,34.597]
[1719250868871,6.5965,127.83,127.67,45.0]
[1719250869147,31.06,127.75,127.66,15.0142]
[1719250869366,31.06,127.8,127.67,45.0]
[1719250869536,31.06,127.8,127.67,52.8326]
[1719250869869,31.06,127.86,127.7,15.0142]
[1719250870024,31.06,127.86,127.71,45.0]
[1719250870348,7.8229,127.83,127.71,45.0]
[1719250870562,7.8223,127.84,127.71,45.0]
[1719250870738,31.06,127.86,127.72,0.34]
[1719250871043,7.8205,127.87,127.72,0.34]
[1719250871246,7.8209,127.87,127.73,6.0622]
[1719250871438,7.8209,127.87,127.74,45.0]
[1719250871650,7.8197,127.89,127.74,45.0]
[1719250871847,7.8197,127.89,127.75,20.0]
[1719250872044,31.06,127.92,127.77,6.581]
[1719250872260,7.818,127.91,127.77,6.581]
[1719250872545,7.8177,127.92,127.78,45.0]
[1719250872860,7.818,127.91,127.78,45.0]
[1719250873532,7.8187,127.9,127.78,45.0]
[1719250873857,19.5389,127.95,127.78,45.0]
[1719250874246,7.8187,127.9,127.78,45.0]
[1719250874436,7.818,127.91,127.78,45.0]
[1719250874752,7.8161,127.95,127.79,0.17]
[1719250874959,7.8168,127.93,127.79,20.34]
[1719250875161,7.8168,127.93,127.8,45.0]
[1719250875471,6.21457385,127.96,127.8,45.0]
[1719250875472,6.21457385,127.96,127.82,15.8581]
[1719250875664,7.815,127.96,127.83,0.34]
[1719250875866,7.815,127.96,127.83,45.34]
[1719250876051,37.14257117,127.98,127.83,45.34]
[1719250876257,19.5286,128.02,127.83,45.34]
[1719250876582,31.06,128.04,127.86,15.0453]
[1719250876761,31.06,128.04,127.87,45.0]
[1719250877073,7.8118,128.02,127.87,45.0]
[1719250877284,7.8118,128.02,127.88,0.34]
[1719250877771,22.4146,128.09,127.9,16.2184]
[1719250878076,7.8093,128.06,127.91,65.34]
[1719250878370,7.8088,128.06,127.91,65.34]
[1719250878667,6.17058264,128.09,127.92,6.5494]
[1719250878879,7.8089,128.06,127.93,65.34]
[1719250879554,37.09276415,128.1,127.93,65.34]
[1719250880172,31.2617,128.15,127.94,16.3751]
[1719250880474,7.8069,128.1,127.96,6.3824]
[1719250880683,7.8055,128.12,127.97,65.0]
[1719250880897,31.06,128.15,127.98,0.34]
[1719250881102,31.06,128.15,128.0,6.3824]
[1719250881380,7.8028,128.16,128.01,65.34]
[1719250881687,7.8009,128.19,128.03,22.3747]
[1719250881851,31.06,128.18,128.03,22.3747]
[1719250882048,7.8068,128.1,128.03,22.3747]
[1719250882279,7.8062,128.11,128.03,22.3747]
[1719250882483,31.06,128.14,127.93,278.6413]
[1719250882484,7.809,128.06,127.98,22.3747]
[1719250882654,7.8058,128.11,127.98,22.3747]
[1719250882858,7.8046,128.13,127.98,22.3747]
[1719250883052,7.8052,128.12,127.98,22.3747]
[1719250883266,31.06,128.16,127.98,22.3747]
[1719250883676,7.8058,128.11,127.98,22.3747]
[1719250883859,31.06,128.12,127.98,22.3747]
[1719250884066,0.17,128.11,127.98,22.3747]
[1719250884299,37.2631588,128.16,127.98,30.1882]
[1719250884480,37.2631588,128.16,127.99,20.0]
[1719250884793,7.8022,128.17,128.01,7.8118]
[1719250885006,50.5585,128.22,128.03,22.4997]
[1719250885298,7.8009,128.2,128.04,20.0]
[1719250885464,56.65563906,128.22,128.04,20.0]
[1719250886388,7.7994,128.22,128.05,6.9204]
[1719250886563,7.7994,128.22,128.07,16.1105]
[1719250886764,7.798,128.24,128.09,6.4955]
[1719250886969,286.16,128.34,128.11,19.5136]
[1719250887188,7.7977,128.25,128.09,14.3023]
[1719250887468,7.7971,128.26,128.1,20.34]
[1719250887664,119.17264638,128.28,128.09,6.4955]
[1719250887881,31.06,128.24,128.09,6.4955]
[1719250888081,31.06,128.24,128.1,20.0]
[1719250888280,7.7985,128.23,128.1,20.0]
[1719250888500,43.0508,128.27,128.09,6.4955]
[1719250888669,37.14554638,128.28,128.09,6.4955]
[1719250888670,7.8004,128.2,128.09,6.4955]
[1719250888870,37.14554638,128.28,128.1,20.0]
[1719250889071,7.8004,128.2,128.09,6.4955]
[1719250889271,7.8008,128.2,128.09,6.4955]
[1719250889583,7.8016,128.18,128.09,6.4955]